bitfinex-derivatives/quotes_BNBF0:USTF0_20251219
["timestamp","ask_amount","ask_price","bid_price","bid_amount"]
[1766152387326,0.20512397,848.6,847.74,0.8798709]
[1766152387327,1.18004309,848.58,847.74,0.8798709]
[1766152387629,1.18004309,848.57,847.74,0.8798709]
[1766152387827,1.18004309,848.56,847.74,0.8798709]
[1766152388030,1.18004309,848.55,847.74,0.8798709]
[1766152388229,1.18004309,848.54,847.74,0.8798709]
[1766152388431,1.18004309,848.53,847.75,0.8798709]
[1766152388628,1.18004309,848.52,847.75,0.8798709]
[1766152388828,1.18004309,848.51,847.75,0.8798709]
[1766152389132,1.18004309,848.5,847.75,0.8798709]
[1766152389330,1.18004309,848.49,847.75,0.8798709]
[1766152389530,1.18004309,848.48,847.75,0.8798709]
[1766152389729,1.18004309,848.47,847.75,0.8798709]
[1766152390028,1.18004309,848.46,847.75,0.8798709]
[1766152390230,1.18004309,848.45,847.75,0.8798709]
[1766152390435,1.18004309,848.44,847.75,0.8798709]
[1766152390732,1.18004309,848.43,847.75,0.8798709]
[1766152390931,1.38473679,848.6,847.75,0.8798709]
[1766152390932,1.18004309,848.42,847.75,0.8798709]
[1766152391132,1.18004309,848.41,847.75,0.8798709]
[1766152391432,1.18004309,848.4,847.75,0.8798709]
[1766152391630,1.18004309,848.39,847.75,0.8798709]
[1766152391834,1.18004309,848.38,847.75,0.8798709]
[1766152392033,1.18004309,848.37,847.75,0.8798709]
[1766152392234,1.18004309,848.36,847.75,0.8798709]
[1766152392435,1.18004309,848.35,847.75,0.8798709]
[1766152392733,1.38473679,848.6,847.75,0.8798709]
[1766152393031,1.18004337,848.59,847.75,0.8798709]
[1766152393333,1.18004337,848.58,847.75,0.8798709]
[1766152393530,1.18004337,848.57,847.75,0.8798709]
[1766152393734,1.18004337,848.56,847.75,0.8798709]
[1766152394030,1.18004337,848.55,847.75,0.8798709]
[1766152394233,1.18004337,848.54,847.75,0.8798709]
[1766152394434,1.18004337,848.53,847.75,0.8798709]
[1766152394630,1.18004337,848.52,847.75,0.8798709]
[1766152394833,1.18004337,848.51,847.75,0.8798709]
[1766152395035,1.18004337,848.5,847.75,0.8798709]
[1766152395233,1.18004337,848.49,847.75,0.8798709]
[1766152395437,1.18004337,848.48,847.75,0.8798709]
[1766152395634,1.18004337,848.47,847.75,0.8798709]
[1766152395834,1.18004337,848.46,847.75,0.8798709]
[1766152396032,1.18004337,848.45,847.75,0.8798709]
[1766152396233,1.18004337,848.44,847.75,0.8798709]
[1766152396434,1.18004337,848.43,847.75,0.8798709]
[1766152396634,1.18004337,848.42,847.75,0.8798709]
[1766152396837,1.18004337,848.41,847.75,0.8798709]
[1766152397037,1.18004337,848.4,847.75,0.8798709]
[1766152397235,1.18004337,848.39,847.75,0.8798709]
[1766152397442,1.18004337,848.38,847.75,0.8798709]
[1766152397738,1.18004337,848.37,847.75,0.8798709]
[1766152398038,1.18004337,848.36,847.75,0.8798709]
[1766152398239,1.18004337,848.35,847.75,0.8798709]
[1766152398535,1.38473679,848.6,847.75,0.8798709]
[1766152398736,1.1800435,848.59,847.75,0.8798709]
[1766152398937,1.1800435,848.58,847.75,0.8798709]
[1766152399134,1.1800435,848.57,847.75,0.8798709]
[1766152399337,1.1800435,848.56,847.75,0.8798709]
[1766152399534,1.1800435,848.55,847.75,0.8798709]
[1766152399837,1.1800435,848.54,847.75,0.8798709]
[1766152400033,1.1800435,848.53,847.75,0.8798709]
[1766152400233,1.1800435,848.52,847.75,0.8798709]
[1766152400440,1.1800435,848.51,847.75,0.8798709]
[1766152400734,1.1800435,848.5,847.75,0.8798709]
[1766152400934,1.1800435,848.49,847.75,0.8798709]
[1766152401139,1.1800435,848.48,847.75,0.8798709]
[1766152401336,1.1800435,848.47,847.75,0.8798709]
[1766152401637,1.1800435,848.46,847.75,0.8798709]
[1766152401840,1.1800435,848.45,847.75,0.8798709]
[1766152402041,1.1800435,848.44,847.75,0.8798709]
[1766152402245,1.1800435,848.43,847.75,0.8798709]
[1766152402442,1.1800435,848.42,847.75,0.8798709]
[1766152402642,1.1800435,848.41,847.75,0.8798709]
[1766152402845,1.1800435,848.4,847.75,0.8798709]
[1766152403142,1.1800435,848.39,847.75,0.8798709]
[1766152403342,1.1800435,848.38,847.75,0.8798709]
[1766152403542,1.1800435,848.37,847.75,0.8798709]
[1766152403845,1.1800435,848.36,847.75,0.8798709]
[1766152404043,1.1800435,848.35,847.75,0.8798709]
[1766152404246,1.38473679,848.6,847.75,0.8798709]
[1766152404449,1.18004348,848.59,847.75,0.8798709]
[1766152404648,1.18004348,848.58,847.75,0.8798709]
[1766152404848,1.18004348,848.57,847.75,0.8798709]
[1766152405046,1.18004348,848.56,847.75,0.8798709]
[1766152405348,1.18004348,848.55,847.75,0.8798709]
[1766152405550,1.18004348,848.54,847.75,0.8798709]
[1766152405751,1.38473679,848.6,847.75,0.8798709]
[1766152406049,1.1800435,848.59,847.75,0.8798709]
[1766152406249,1.1800435,848.58,847.75,0.8798709]
[1766152406449,1.1800435,848.57,847.75,0.8798709]
[1766152406649,1.1800435,848.56,847.75,0.8798709]
[1766152406850,1.1800435,848.55,847.75,0.8798709]
[1766152407050,1.1800435,848.54,847.75,0.8798709]
[1766152407247,1.1800435,848.53,847.74,0.8798709]
[1766152407550,1.1800435,848.52,847.74,0.8798709]
[1766152407751,1.1800435,848.51,847.74,0.8798709]
[1766152408050,1.1800435,848.5,847.74,0.8798709]
[1766152408248,1.1800435,848.49,847.74,0.8798709]
[1766152408450,1.1800435,848.48,847.74,0.8798709]
[1766152408648,1.1800435,848.47,847.74,0.8798709]
[1766152408951,1.1800435,848.46,847.74,0.8798709]
[1766152409246,1.1800435,848.45,847.74,0.8798709]
[1766152409447,1.1800435,848.44,847.74,0.8798709]
[1766152409651,1.1800435,848.43,847.74,0.8798709]
[1766152409847,1.1800435,848.42,847.74,0.8798709]
[1766152410048,1.1800435,848.41,847.74,0.8798709]
[1766152410251,1.1800435,848.4,847.74,0.8798709]
[1766152410448,1.1800435,848.39,847.74,0.8798709]
[1766152410653,1.1800435,848.38,847.74,0.8798709]
[1766152410850,1.1800435,848.37,847.74,0.8798709]
[1766152411153,1.1800435,848.36,847.74,0.8798709]
[1766152411350,1.1800435,848.35,847.74,0.8798709]
[1766152411550,1.38473679,848.6,847.74,0.8798709]
[1766152411752,1.18004352,848.59,847.74,0.8798709]
[1766152411951,1.18004352,848.58,847.74,0.8798709]
[1766152412156,1.18004352,848.57,847.74,0.8798709]
[1766152412351,1.18004352,848.56,847.74,0.8798709]
[1766152412551,1.18004352,848.55,847.74,0.8798709]
[1766152412752,1.18004352,848.54,847.72,0.8798709]
[1766152412954,1.17961282,848.58,847.72,0.8798709]
[1766152412955,1.18004352,848.53,847.72,0.8798709]
[1766152413154,1.18004352,848.52,847.72,0.8798709]
[1766152413351,1.18004352,848.51,847.72,0.8798709]
[1766152413656,1.18004352,848.5,847.72,0.8798709]
[1766152413857,1.18004352,848.49,847.72,0.8798709]
[1766152414152,1.18004352,848.48,847.72,0.8798709]
[1766152414356,1.18004352,848.47,847.72,0.8798709]
[1766152414553,1.18004352,848.46,847.72,0.8798709]
[1766152414758,0.20517114,848.32,847.72,0.8798709]
[1766152415057,1.18004352,848.31,847.63,0.8798709]
[1766152415255,1.18004352,848.31,847.62,0.8798709]
[1766152415654,1.17961282,848.51,847.62,0.8798709]
[1766152415853,0.20517537,848.42,847.7,0.8798709]
[1766152416058,1.18008337,848.41,847.7,0.8798709]
[1766152416259,0.20517537,848.42,847.82,0.8798709]
[1766152418360,0.20517537,848.42,847.81,0.8798709]
[1766152419454,0.20517537,848.42,847.8,0.8798709]
[1766152422261,0.20517537,848.42,847.79,0.8798709]
[1766152426367,0.20517537,848.42,847.78,0.8798709]
[1766152428467,1.17990985,848.41,847.67,0.8798709]
[1766152428670,0.20517537,848.42,847.67,0.8798709]
[1766152428868,1.18005735,848.41,847.67,0.8798709]
[1766152429072,0.20517537,848.42,847.67,0.8798709]
[1766152429272,1.18005719,848.41,847.67,0.8798709]
[1766152429466,0.20517537,848.42,847.67,0.8798709]
[1766152429671,1.18005719,848.41,847.67,0.8798709]
[1766152429868,0.20517537,848.42,847.67,0.8798709]
[1766152430169,1.18005719,848.41,847.67,0.8798709]
[1766152430368,0.20517537,848.42,847.67,0.8798709]
[1766152430569,1.18005722,848.41,847.67,0.8798709]
[1766152430768,0.20517537,848.42,847.67,0.8798709]
[1766152430973,1.18005722,848.41,847.67,0.8798709]
[1766152431171,0.20517537,848.42,847.67,0.8798709]
[1766152431470,1.18005722,848.41,847.67,0.8798709]
[1766152431775,0.20517537,848.42,847.67,0.8798709]
[1766152431976,1.18005719,848.41,847.67,0.8798709]
[1766152432176,0.20517537,848.42,847.67,0.8798709]
[1766152432376,1.18005719,848.41,847.67,0.8798709]
[1766152432576,0.20517537,848.42,847.67,0.8798709]
[1766152432777,1.18005719,848.41,847.67,0.8798709]
[1766152432973,0.20517537,848.42,847.67,0.8798709]
[1766152433176,1.18005719,848.41,847.67,0.8798709]
[1766152433476,0.20517537,848.42,847.67,0.8798709]
[1766152433672,1.18005719,848.41,847.67,0.8798709]
[1766152433877,0.20517537,848.42,847.67,0.8798709]
[1766152434074,1.18005722,848.41,847.67,0.8798709]
[1766152434275,0.20517537,848.42,847.67,0.8798709]
[1766152434474,1.18005726,848.41,847.67,0.8798709]
[1766152434775,0.20517537,848.42,847.67,0.8798709]
[1766152434975,1.1800573,848.41,847.67,0.8798709]
[1766152435174,0.20517537,848.42,847.67,0.8798709]
[1766152435377,1.18005734,848.41,847.64,0.8798709]
[1766152435578,1.18005734,848.4,847.64,0.8798709]
[1766152435881,1.18005734,848.39,847.64,0.8798709]
[1766152436078,1.18005734,848.38,847.64,0.8798709]
[1766152436377,1.18012432,848.37,847.62,0.8798709]
[1766152436577,1.18012432,848.36,847.62,0.8798709]
[1766152436881,0.20517537,848.42,847.62,0.8798709]
[1766152437078,1.18012432,848.41,847.62,0.8798709]
[1766152437378,1.18012432,848.4,847.62,0.8798709]
[1766152437577,1.18012432,848.39,847.62,0.8798709]
[1766152437776,0.20517537,848.42,847.62,0.8798709]
[1766152437777,1.18012432,848.38,847.62,0.8798709]
[1766152437979,1.18012432,848.37,847.62,0.8798709]
[1766152438180,1.18012432,848.36,847.62,0.8798709]
[1766152438384,0.20517537,848.42,847.62,0.8798709]
[1766152438582,1.18012432,848.41,847.62,0.8798709]
[1766152438783,1.18012432,848.4,847.62,0.8798709]
[1766152439084,1.18012432,848.39,847.62,0.8798709]
[1766152439285,1.18012432,848.38,847.62,0.8798709]
[1766152439485,1.18012432,848.37,847.62,0.8798709]
[1766152439682,0.20517537,848.42,847.62,0.8798709]
[1766152439985,1.18012432,848.41,847.62,0.8798709]
[1766152440185,1.18012432,848.4,847.62,0.8798709]
[1766152440381,1.18012432,848.39,847.62,0.8798709]
[1766152440583,1.18012432,848.38,847.62,0.8798709]
[1766152440785,1.18012432,848.37,847.62,0.8798709]
[1766152440984,0.20517537,848.42,847.63,0.8798709]
[1766152441284,1.18011081,848.41,847.63,0.8798709]
[1766152441482,1.18011081,848.4,847.63,0.8798709]
[1766152441782,1.18011081,848.39,847.63,0.8798709]
[1766152441982,1.18011081,848.38,847.63,0.8798709]
[1766152442185,0.20517537,848.42,847.63,0.8798709]
[1766152442386,1.18011081,848.41,847.62,0.8798709]
[1766152442687,1.18011081,848.4,847.62,0.8798709]
[1766152442885,1.18011081,848.39,847.62,0.8798709]
[1766152443085,1.18011081,848.38,847.62,0.8798709]
[1766152443285,0.20517537,848.42,847.62,0.8798709]
[1766152443587,1.18011075,848.41,847.62,0.8798709]
[1766152443886,1.18011075,848.4,847.62,0.8798709]
[1766152444084,1.18011075,848.39,847.62,0.8798709]
[1766152444285,1.18011075,848.38,847.62,0.8798709]
[1766152444486,0.20517537,848.42,847.62,0.8798709]
[1766152444689,1.18011073,848.41,847.62,0.8798709]
[1766152444888,1.18011073,848.4,847.62,0.8798709]
[1766152445190,1.18011073,848.39,847.62,0.8798709]
[1766152445387,1.18011073,848.38,847.62,0.8798709]
[1766152445587,0.20517537,848.42,847.62,0.8798709]
[1766152445790,1.18011073,848.41,847.62,0.8798709]
[1766152445992,1.18011073,848.4,847.62,0.8798709]
[1766152446188,1.18011073,848.39,847.62,0.8798709]
[1766152446392,1.18011073,848.38,847.62,0.8798709]
[1766152446587,0.20517537,848.42,847.62,0.8798709]
[1766152446887,1.18011073,848.41,847.62,0.8798709]
[1766152447192,1.18011073,848.4,847.62,0.8798709]
[1766152447389,1.18011073,848.39,847.62,0.8798709]
[1766152447592,1.18011073,848.38,847.62,0.8798709]
[1766152447793,0.20517537,848.42,847.62,0.8798709]
[1766152447992,1.18011075,848.41,847.62,0.8798709]
[1766152448189,1.18011075,848.4,847.62,0.8798709]
[1766152448390,1.18011075,848.39,847.62,0.8798709]
[1766152448594,1.18011075,848.38,847.62,0.8798709]
[1766152448895,0.20517537,848.42,847.62,0.8798709]
[1766152449094,1.18011075,848.41,847.62,0.8798709]
[1766152449394,1.18011075,848.4,847.62,0.8798709]
[1766152449592,1.18011075,848.39,847.62,0.8798709]
[1766152449793,1.18011075,848.38,847.62,0.8798709]
[1766152449993,0.20517537,848.42,847.62,0.8798709]
[1766152450191,1.18011075,848.41,847.62,0.8798709]
[1766152450396,1.18011075,848.4,847.62,0.8798709]
[1766152450595,1.18011075,848.39,847.62,0.8798709]
[1766152450796,1.18011075,848.38,847.62,0.8798709]
[1766152450994,0.20517537,848.42,847.62,0.8798709]
[1766152451198,1.18011148,848.41,847.62,0.8798709]
[1766152451397,1.18011148,848.4,847.62,0.8798709]
[1766152451697,1.18011148,848.39,847.62,0.8798709]
[1766152451892,1.18011148,848.38,847.62,0.8798709]
[1766152452093,0.20517537,848.42,847.62,0.8798709]
[1766152452294,1.18011148,848.41,847.61,0.8798709]
[1766152452497,1.18011148,848.4,847.61,0.8798709]
[1766152452694,1.18011148,848.39,847.61,0.8798709]
[1766152452898,1.18011148,848.38,847.61,0.8798709]
[1766152453197,0.20517537,848.42,847.61,0.8798709]
[1766152453398,1.18011146,848.41,847.61,0.8798709]
[1766152453597,1.18011146,848.4,847.61,0.8798709]
[1766152453893,1.18011146,848.39,847.61,0.8798709]
[1766152454098,0.20517537,848.42,847.61,0.8798709]
[1766152454297,1.18011152,848.41,847.61,0.8798709]
[1766152454498,1.18011152,848.4,847.61,0.8798709]
[1766152454694,0.20517537,848.42,847.61,0.8798709]
[1766152454695,1.18011152,848.39,847.61,0.8798709]
[1766152454897,0.20517537,848.42,847.61,0.8798709]
[1766152455096,1.18011145,848.41,847.61,0.8798709]
[1766152455294,0.20517537,848.42,847.61,0.8798709]
[1766152455295,1.18011145,848.4,847.61,0.8798709]
[1766152455498,1.18011145,848.39,847.61,0.8798709]
[1766152455799,0.20517537,848.42,847.61,0.8798709]
[1766152455998,1.18011152,848.41,847.61,0.8798709]
[1766152456201,1.18011152,848.4,847.61,0.8798709]
[1766152456496,1.18011152,848.39,847.61,0.8798709]
[1766152456699,0.20517537,848.42,847.61,0.8798709]
[1766152456900,1.18011152,848.41,847.61,0.8798709]
[1766152457195,1.18011152,848.4,847.61,0.8798709]
[1766152457398,1.18011152,848.39,847.61,0.8798709]
[1766152457596,0.20517537,848.42,847.61,0.8798709]
[1766152457801,1.18011152,848.41,847.61,0.8798709]
[1766152458099,1.18011152,848.4,847.61,0.8798709]
[1766152458301,1.18011152,848.39,847.61,0.8798709]
[1766152458601,0.20517537,848.42,847.61,0.8798709]
[1766152458900,1.18011152,848.41,847.61,0.8798709]
[1766152459100,1.18011152,848.4,847.61,0.8798709]
[1766152459300,1.18011152,848.39,847.61,0.8798709]
[1766152459497,0.20517537,848.42,847.61,0.8798709]
[1766152459701,1.18011152,848.41,847.61,0.8798709]
[1766152459903,1.18011152,848.4,847.61,0.8798709]
[1766152460099,1.18011152,848.39,847.61,0.8798709]
[1766152460304,0.20517537,848.42,847.61,0.8798709]
[1766152460505,1.1801115,848.41,847.61,0.8798709]
[1766152460704,1.1801115,848.4,847.61,0.8798709]
[1766152460905,1.1801115,848.39,847.61,0.8798709]
[1766152461100,0.20517537,848.42,847.61,0.8798709]
[1766152461305,1.1801115,848.41,847.61,0.8798709]
[1766152461503,1.1801115,848.4,847.61,0.8798709]
[1766152461807,1.1801115,848.39,847.61,0.8798709]
[1766152462007,0.20517537,848.42,847.61,0.8798709]
[1766152462204,1.18011146,848.41,847.61,0.8798709]
[1766152462407,1.18011146,848.4,847.61,0.8798709]
[1766152462607,1.18011146,848.39,847.61,0.8798709]
[1766152462804,0.20517537,848.42,847.61,0.8798709]
[1766152463106,1.18010885,848.41,847.61,0.8798709]
[1766152463307,1.18010885,848.4,847.61,0.8798709]
[1766152463606,1.18010885,848.39,847.61,0.8798709]
[1766152463804,0.20517537,848.42,847.61,0.8798709]
[1766152464003,1.18010885,848.41,847.61,0.8798709]
[1766152464207,1.18010885,848.4,847.61,0.8798709]
[1766152464405,1.18010885,848.39,847.61,0.8798709]
[1766152464605,0.20517537,848.42,847.61,0.8798709]
[1766152464809,1.18010885,848.41,847.61,0.8798709]
[1766152465105,1.18010885,848.4,847.61,0.8798709]
[1766152465308,1.18010885,848.39,847.61,0.8798709]
[1766152465508,0.20517537,848.42,847.61,0.8798709]
[1766152465708,1.18010885,848.41,847.61,0.8798709]
[1766152465903,1.18010885,848.4,847.61,0.8798709]
[1766152466108,1.18010885,848.39,847.61,0.8798709]
[1766152466408,0.20517537,848.42,847.61,0.8798709]
[1766152466705,1.18010885,848.41,847.61,0.8798709]
[1766152466908,1.18010885,848.4,847.61,0.8798709]
[1766152467106,1.18010885,848.39,847.61,0.8798709]
[1766152467308,0.20517537,848.42,847.61,0.8798709]
[1766152467508,1.18010885,848.41,847.61,0.8798709]
[1766152467709,1.18010885,848.4,847.61,0.8798709]
[1766152467907,1.18010885,848.39,847.61,0.8798709]
[1766152468113,0.20517537,848.42,847.61,0.8798709]
[1766152468307,1.18010885,848.41,847.61,0.8798709]
[1766152468512,1.18010885,848.4,847.61,0.8798709]
[1766152468711,1.18010885,848.39,847.61,0.8798709]
[1766152469010,0.20517537,848.42,847.61,0.8798709]
[1766152469209,1.18010882,848.41,847.61,0.8798709]
[1766152469414,1.18010882,848.4,847.61,0.8798709]
[1766152469613,1.18010882,848.39,847.61,0.8798709]
[1766152469814,0.20517537,848.42,847.61,0.8798709]
[1766152470012,1.18010882,848.41,847.61,0.8798709]
[1766152470314,1.18010882,848.4,847.61,0.8798709]
[1766152470515,1.18010882,848.39,847.61,0.8798709]
[1766152470710,0.20517537,848.42,847.61,0.8798709]
[1766152470914,1.18010882,848.41,847.61,0.8798709]
[1766152471110,1.18010882,848.4,847.61,0.8798709]
[1766152471412,1.18010882,848.39,847.61,0.8798709]
[1766152471714,0.20517537,848.42,847.61,0.8798709]
[1766152471913,1.18010882,848.41,847.61,0.8798709]
[1766152472114,1.18010882,848.4,847.61,0.8798709]
[1766152472313,1.18010882,848.39,847.61,0.8798709]
[1766152472515,0.20517537,848.42,847.61,0.8798709]
[1766152472817,1.18010882,848.41,847.61,0.8798709]
[1766152473018,1.18010882,848.4,847.61,0.8798709]
[1766152473212,1.18010882,848.39,847.61,0.8798709]
[1766152473416,0.20517537,848.42,847.61,0.8798709]
[1766152473615,1.18010882,848.41,847.61,0.8798709]
[1766152473818,1.18010882,848.4,847.61,0.8798709]
[1766152474118,1.18010882,848.39,847.61,0.8798709]
[1766152474315,0.20517537,848.42,847.61,0.8798709]
[1766152474517,1.18010882,848.41,847.61,0.8798709]
[1766152474716,1.18010882,848.4,847.61,0.8798709]
[1766152474919,1.18010882,848.39,847.61,0.8798709]
[1766152475219,0.20517537,848.42,847.61,0.8798709]
[1766152475416,1.18010882,848.41,847.61,0.8798709]
[1766152475615,1.18010882,848.4,847.61,0.8798709]
[1766152475819,1.18010882,848.39,847.61,0.8798709]
[1766152476020,0.20517537,848.42,847.61,0.8798709]
[1766152476220,1.18010882,848.41,847.61,0.8798709]
[1766152476421,1.18010882,848.4,847.61,0.8798709]
[1766152476718,1.18010882,848.39,847.61,0.8798709]
[1766152476918,0.20517537,848.42,847.61,0.8798709]
[1766152477117,1.18010882,848.41,847.61,0.8798709]
[1766152477318,1.18010882,848.4,847.61,0.8798709]
[1766152477518,1.18010882,848.39,847.61,0.8798709]
[1766152477821,0.20517537,848.42,847.61,0.8798709]
[1766152478017,1.18010882,848.41,847.61,0.8798709]
[1766152478219,1.18010882,848.4,847.61,0.8798709]
[1766152478424,1.18010882,848.39,847.61,0.8798709]
[1766152478722,0.20517537,848.42,847.61,0.8798709]
[1766152479024,1.18010882,848.41,847.61,0.8798709]
[1766152479219,1.18010882,848.4,847.62,0.8798709]
[1766152479420,1.18010882,848.39,847.62,0.8798709]
[1766152479623,1.18010882,848.38,847.62,0.8798709]
[1766152479820,0.20517537,848.42,847.62,0.8798709]
[1766152480024,1.18010882,848.41,847.62,0.8798709]
[1766152480321,1.18010882,848.4,847.62,0.8798709]
[1766152480522,1.18010882,848.39,847.62,0.8798709]
[1766152480723,1.18010882,848.38,847.62,0.8798709]
[1766152480922,0.20517537,848.42,847.62,0.8798709]
[1766152481125,1.18010901,848.41,847.62,0.8798709]
[1766152481326,1.18010901,848.4,847.62,0.8798709]
[1766152481526,1.18010901,848.39,847.62,0.8798709]
[1766152481726,1.18010901,848.38,847.62,0.8798709]
[1766152482026,0.20517537,848.42,847.62,0.8798709]
[1766152482228,1.18010909,848.41,847.63,0.8798709]
[1766152482522,1.18010909,848.4,847.63,0.8798709]
[1766152482726,1.18010909,848.39,847.63,0.8798709]
[1766152482923,1.18010909,848.38,847.63,0.8798709]
[1766152483122,0.20517537,848.42,847.63,0.8798709]
[1766152483123,1.18010909,848.37,847.63,0.8798709]
[1766152483323,0.20517537,848.42,847.63,0.8798709]
[1766152483522,1.18010905,848.41,847.63,0.8798709]
[1766152483722,1.18010905,848.4,847.63,0.8798709]
[1766152483927,1.18010905,848.39,847.63,0.8798709]
[1766152484228,1.18010905,848.38,847.64,0.8798709]
[1766152484422,1.18010905,848.37,847.64,0.8798709]
[1766152484626,1.18010905,848.36,847.64,0.8798709]
[1766152484826,0.20517537,848.42,847.64,0.8798709]
[1766152485025,1.18010905,848.41,847.64,0.8798709]
[1766152485224,1.18010905,848.4,847.64,0.8798709]
[1766152485425,1.18010905,848.39,847.64,0.8798709]
[1766152485628,1.18010905,848.38,847.64,0.8798709]
[1766152485830,1.18010905,848.37,847.64,0.8798709]
[1766152486028,1.18010905,848.36,847.64,0.8798709]
[1766152486231,1.18010905,848.35,847.65,0.8798709]
[1766152486429,0.20517537,848.42,847.65,0.8798709]
[1766152486729,1.18010905,848.41,847.65,0.8798709]
[1766152486932,1.18010905,848.4,847.65,0.8798709]
[1766152487132,1.18010905,848.39,847.65,0.8798709]
[1766152487431,1.18010905,848.38,847.66,0.8798709]
[1766152487630,1.18010905,848.37,847.66,0.8798709]
[1766152487829,1.18010905,848.36,847.66,0.8798709]
[1766152488030,1.18010905,848.35,847.66,0.8798709]
[1766152488230,1.18010905,848.34,847.68,0.8798709]
[1766152488433,1.18010905,848.33,847.68,0.8798709]
[1766152488632,1.18010905,848.32,847.68,0.8798709]
[1766152488832,0.20517537,848.42,847.68,0.8798709]
[1766152489032,1.18010905,848.41,847.68,0.8798709]
[1766152489229,1.18010905,848.4,847.68,0.8798709]
[1766152489433,1.18010905,848.39,847.68,0.8798709]
[1766152489633,1.18010905,848.38,847.68,0.8798709]
[1766152489932,1.18010905,848.37,847.68,0.8798709]
[1766152490133,1.18010905,848.36,847.68,0.8798709]
[1766152490433,1.18010905,848.35,847.68,0.8798709]
[1766152490634,1.18010905,848.34,847.68,0.8798709]
[1766152490834,1.18010905,848.33,847.68,0.8798709]
[1766152491135,1.18010905,848.32,847.68,0.8798709]
[1766152491333,0.20517537,848.42,847.68,0.8798709]
[1766152491535,1.18010905,848.41,847.68,0.8798709]
[1766152491734,1.18010905,848.4,847.68,0.8798709]
[1766152491935,1.18010905,848.39,847.68,0.8798709]
[1766152492132,1.18010905,848.38,847.68,0.8798709]
[1766152492336,1.18010905,848.37,847.68,0.8798709]
[1766152492535,1.18010905,848.36,847.68,0.8798709]
[1766152492831,1.18010905,848.35,847.68,0.8798709]
[1766152493034,1.18010905,848.34,847.68,0.8798709]
[1766152493234,1.18010905,848.33,847.69,0.8798709]
[1766152493531,1.18010905,848.32,847.69,0.8798709]
[1766152493735,0.20517537,848.42,847.69,0.8798709]
[1766152493938,1.18010905,848.41,847.69,0.8798709]
[1766152494139,1.18010905,848.4,847.69,0.8798709]
[1766152494337,1.18010905,848.39,847.69,0.8798709]
[1766152494537,1.18010905,848.38,847.69,0.8798709]
[1766152494737,1.18010905,848.37,847.69,0.8798709]
[1766152494937,1.18010905,848.36,847.69,0.8798709]
[1766152495134,0.20517537,848.42,847.69,0.8798709]
[1766152495135,1.18010905,848.35,847.69,0.8798709]
[1766152495336,1.18010905,848.34,847.69,0.8798709]
[1766152495539,1.18010905,848.33,847.69,0.8798709]
[1766152495738,1.18010905,848.32,847.69,0.8798709]
[1766152495937,1.18010905,848.31,847.69,0.8798709]
[1766152496237,0.20517537,848.42,847.69,0.8798709]
[1766152496439,1.18010909,848.41,847.69,0.8798709]
[1766152496641,1.18010909,848.4,847.69,0.8798709]
[1766152496942,1.18010909,848.39,847.69,0.8798709]
[1766152497238,1.18010909,848.38,847.69,0.8798709]
[1766152497444,1.18010909,848.37,847.69,0.8798709]
[1766152497738,1.18010909,848.36,847.69,0.8798709]
[1766152497937,1.18010909,848.35,847.69,0.8798709]
[1766152498241,1.18010909,848.34,847.69,0.8798709]
[1766152498541,1.18010909,848.33,847.69,0.8798709]
[1766152498741,1.18010909,848.32,847.69,0.8798709]
[1766152498938,1.18010909,848.31,847.69,0.8798709]
[1766152499143,0.20517537,848.42,847.69,0.8798709]
[1766152499341,1.18010909,848.41,847.69,0.8798709]
[1766152499540,1.18010909,848.4,847.69,0.8798709]
[1766152499737,1.18010909,848.39,847.69,0.8798709]
[1766152499942,1.18010909,848.38,847.69,0.8798709]
[1766152500142,1.18010909,848.37,847.69,0.8798709]
[1766152500341,1.18010909,848.36,847.69,0.8798709]
[1766152500541,1.18010909,848.35,847.69,0.8798709]
[1766152500741,1.18010909,848.34,847.69,0.8798709]
[1766152500942,1.18010909,848.33,847.69,0.8798709]
[1766152501141,1.18010909,848.32,847.69,0.8798709]
[1766152501445,1.18010909,848.31,847.69,0.8798709]
[1766152501741,0.20517537,848.42,847.69,0.8798709]
[1766152501945,1.18010911,848.41,847.69,0.8798709]
[1766152502144,1.18010911,848.4,847.69,0.8798709]
[1766152502350,1.18010911,848.39,847.69,0.8798709]
[1766152502551,1.18010911,848.38,847.69,0.8798709]
[1766152502752,1.18010911,848.37,847.69,0.8798709]
[1766152503046,1.18010911,848.36,847.69,0.8798709]
[1766152503251,1.18010911,848.35,847.69,0.8798709]
[1766152503446,1.18010911,848.34,847.69,0.8798709]
[1766152503648,1.18010911,848.33,847.69,0.8798709]
[1766152503852,1.18010911,848.32,847.69,0.8798709]
[1766152504148,1.18010911,848.31,847.69,0.8798709]
[1766152504348,0.20517537,848.42,847.69,0.8798709]
[1766152504548,1.18010911,848.41,847.69,0.8798709]
[1766152504749,1.18010911,848.4,847.69,0.8798709]
[1766152504949,1.18010911,848.39,847.69,0.8798709]
[1766152505148,1.18010911,848.38,847.69,0.8798709]
[1766152505350,1.18010911,848.37,847.69,0.8798709]
[1766152505652,1.18010911,848.36,847.69,0.8798709]
[1766152505849,1.18010911,848.35,847.69,0.8798709]
[1766152506050,1.18010911,848.34,847.69,0.8798709]
[1766152506250,1.18010911,848.33,847.69,0.8798709]
[1766152506552,1.18010911,848.32,847.69,0.8798709]
[1766152506750,1.18010911,848.31,847.69,0.8798709]